Workbook

Sheet Instructions
B1: The Level II model uses different input properties depending on whether they are Type 1, Type 2, or Type 3 chemicals (as defined in Mackay et al. 1996). In this version of the model, the chemical 'Type' is selected based on certain chemical properties, rather than by user selection. Selection rules are as follows:
B3: Type 1 chemicals: Substances partition into air, water and octanol. These chemicals have measurable vapour pressures and solubilities. If a vapour pressure value is entered the chemical will be treated as Type 1.
C4: If the vapour pressure is not meaurable or negligible, enter a dash in vapour pressure cell, then continue to fill out the rest of the properties
B5: Type 2 chemicals: The substance does not appreciably partition into air. If a dash is entered into vapour pressure then additional partition ratio inputs will appear for media/water systems
B6: Type 3 chemicals: The substance does not appreciably partition into water. If a dash is entered in the vapour pressure input and the soil/water partition ratio value is 1000 or larger, then the required inputs will be media/air
C7: If the inputted soil/water partition ratio > 1000, ALL partition ratio inputs will change to media/air from media/water. Some values may need to be re-inputted as media/air instead of media/water
B8: Notes: | C8: After the Inputs for your chemical is filled out in the Inputs sheet, it is recommended to add the chemical to the database by clicking the radial button 'Add to DB' to easily-re-enter the correct input data in the future There are sample Type 1, 2, and 3 chemicals in the database
B9: Continue filling out environment, emission and inflow inputs. Results are located in the 'Results' sheet and summarized in the 'Diagram' and 'Charts' sheets
B11: Property estimation guidelines (all equations from Mackay & Parnis 2021):
B12: - Henry's law constant (H) an be estimated as: Vapor Pressure * Molar Mass / Solubility
B13: - Reaction half-life estimated values can be obtained from EAS-E Suite (www.eas-e-suite.com), or EPI Suite for water & air half-lives only (https://www.epa.gov/tsca-screening-tools/epi-suitetm-estimation-program-interface)
B14: - Koc can be estimated as Kow * 0.35 (Seth method) or as Kow * 0.41 (Karickhoff method)
B15: - Kaw can be calculated as H/RT, where R = Gas constant and T = temperature
B16: - Partition ratios can be calculated as the ratio of Z-values, e.g., Kaw = Za/Zw
C17: > Za = 1/RT = 4x10^-4
C18: > Zw = Za/Kaw
C19: > Zo = Zw*Kow
C20: > Z_solid = Zo * OC fraction; where any solid phase can be represented including sediment, suspended sediment, soil, etc. OC fraction default values can be found in the Environment properties sheet
C21: > Z_biota = Zo * Lipid content; where any biota can be represented, including fish. Default lipid content values can be found in the Environment properties sheet
B24: References: | C24: Mackay et al. 1996. Assessing the fate of new and existing chemicals: a five-stage process. Environ. Toxicol Chem. 15(9), 1618-1626
C25: Mackay & Parnis, 2021. Multimedia Environmental Models: The Fugacity Approach. 3rd ed. CRC Press, Taylor & Francis Group. Boca Raton, FL.

Sheet Inputs - Chemical Properties
C3: CHEMICAL PROPERTIES | D3: Please complete all required fields below
D4: or
D5: Select a chemical from the database:
C6: * indicates required input
C7: Note: insert dash (-) if property is not inputted | F7: References and Notes
B9: * | C9: Chemical Name | D9: Benzo[a]pyrene
C10: CAS
B12: * | C12: Molar Mass (g/mol) | D12: 252.316
B13: * | C13: Data Temperature (°C) | D13: 25
C14: Melting Point (°C) | D14: 175
C15: Vapor Pressure (Pa) | D15: 7e-07
B16: =IF(Pressure="-","","*") -> * | C16: Henry's Law Constant (Pa·m³/mol) | D16: 0.0463
C18: Reaction Half-Lives (hours)
B19: * | C19: In Air | D19: 170 | F19: EAS-E Suite Database
B20: * | C20: In Aerosol | D20: 170 | F20: Assumption made that 1/2 life in air can be used
B21: * | C21: In Water | D21: 1700 | F21: EAS-E Suite Database
B22: * | C22: In Suspended Particles | D22: 1700 | F22: Assumption made that 1/2 life in sediment can be used
B23: * | C23: In Fish | D23: 26.77 | F23: EAS-E Suite Database
B24: * | C24: In Soil | D24: 17000 | F24: EAS-E Suite Database
B25: * | C25: In Sediment | D25: 55000 | F25: EAS-E Suite Database
C27: Partition Ratios
B29: =IF(Pressure="-","","*") -> * | C29: logKOW | D29: 6.04
B30: =IF(Pressure="-","","*") -> * | C30: KOC | D30: =0.35*10^logKow -> 383767.3687 | F30: Seth method
B31: =IF(Pressure="-","*","") ->  | C31: =IF(AND(ISNUMBER(SEARCH("N/A",Fugacity_Ratio)),KQW<1000),"Air-Water",IF(ISNUMBER(SEARCH("N/A",Fugacity_Ratio)),"Water-Air","-")) -> -
C32: =IF(AND(ISNUMBER(SEARCH("N/A",Fugacity_Ratio)),KQW<1000),"Aerosol-Water",IF(ISNUMBER(SEARCH("N/A",Fugacity_Ratio)),"Aerosol-Air","-")) -> -
C33: =IF(AND(ISNUMBER(SEARCH("N/A",Fugacity_Ratio)),KQW<1000),"Soil-Water (L/kg)",IF(ISNUMBER(SEARCH("N/A",Fugacity_Ratio)),"Soilr-Air","-")) -> -
C34: =IF(AND(ISNUMBER(SEARCH("N/A",Fugacity_Ratio)),KQW<1000),"Suspended Particles-Water (L/kg)",IF(ISNUMBER(SEARCH("N/A",Fugacity_Ratio)),"Suspended Particles-Air","-")) -> -
C35: =IF(AND(ISNUMBER(SEARCH("N/A",Fugacity_Ratio)),KQW<1000),"Sediment-Water (L/kg)",IF(ISNUMBER(SEARCH("N/A",Fugacity_Ratio)),"Sediment-Air","-")) -> -
C36: =IF(AND(ISNUMBER(SEARCH("N/A",Fugacity_Ratio)),KQW<1000),"Fish-Water (L/kg)",IF(ISNUMBER(SEARCH("N/A",Fugacity_Ratio)),"Fish-Air","-")) -> -

Sheet Inputs - Environment
C3: ENVIRONMENTAL PROPERTIES
C5: Please complete all fields or select an environment from the database:
C7: Environment Name | D7: EQC-2012-Hughes et al.
C9: Fractions | F9: Advective Flow Residence Times (h)
C10: Aerosol in Air | D10: 2e-11 | F10: Air | G10: 100
C11: Susp. Particles in Water | D11: 5e-06 | F11: Water | G11: 1000
C12: Fish in Water | D12: 1e-06 | F12: Sediment (burial) | G12: 50000
C14: Volumes (m³) | F14: Organic Carbon (g/g)
C15: Air | D15: 100000000000000 | F15: Susp. Particles | G15: 0.2
C16: Water | D16: 200000000000 | F16: Fish Lipid Fraction | G16: 0.05
C17: Soil | D17: 18000000000 | F17: Soil | G17: 0.02
C18: Sediment | D18: 500000000 | F18: Sediment | G18: 0.04
C20: Density (kg/m³) | F20: Additional Comments
C21: Air | D21: 1.2
C22: Aerosol | D22: 2000
C23: Water | D23: 1000
C24: Susp. Particles | D24: 1500
C25: Fish | D25: 1000
C26: Soil | D26: 2400
C27: Sediment | D27: 2400

Sheet Emissions and Inflows
C5: Emission Rate | D5: 100000 | E5: kg/h | F5: =Emis_kgph*1000/MolarMass -> 396328.4136 | G5: mol/h
C7: Advective Inflow Concentrations
C9: Concentration in Inflow Water | D9: 0 | E9: ng/L | F9: =ConcWatNgpL/10^6/MolarMass -> 0 | G9: mol/m³
C10: Concentration in Air | D10: 0 | E10: ng/m³ | F10: =ConcAirNgpm3/10^9/MolarMass -> 0 | G10: mol/m³
K11: 0
C12: Additional Comments

Sheet Results
C3: Level II Results
C5: Chemical Name | D5: =ChemName -> Benzo[a]pyrene
C6: Environment Name | D6: =EnvName -> EQC-2012-Hughes et al.
C9: Fugacity Ratio | D9: =IF(Pressure="-","N/A",IF(MeltPt>DataTemp,EXP(6.79*(1-(MeltPt+273.15)/(DataTemp+273.15))),1)) -> 0.03284138771
C11: Subcooled Liq. Vap. Press. (Pa) | D11: =IF(Pressure="-","N/A",Pressure/Fugacity_Ratio) -> 2.131456826e-05
C13: Fugacity (Pa) | D13: =TotalChemInputM/(DAdvectTotal+DReactTotal) -> 1.220664903e-06
C15: Aquivalence (mol/m3) | D15: =IF(AND(ISNUMBER(SEARCH("N/A",Fugacity_Ratio)),KQW<1000),Conc_Water,IF(ISNUMBER(SEARCH("N/A",Fugacity_Ratio)),"-","-")) -> -
C17: Mass Balance
D19: Rate | F19: Concentration
D20: kg/h | E20: mol/h | F20: ng/m³ | G20: ng/L | H20: kg/m³ | I20: mol/m³
C21: Emission | D21: =Emis_kgph -> 100000 | E21: =Emis_molph -> 396328.4136 | F21: - | G21: - | H21: - | I21: -
C22: Inflow Air | D22: =E22*MolarMass/1000 -> 0 | E22: =F51*I22 -> 0 | F22: =ConcAirNgpm3 -> 0 | G22: - | H22: =F22*0.000000000001 -> 0 | I22: =F22*0.000000001/MolarMass -> 0
C23: Inflow Water | D23: =E23*MolarMass/1000 -> 0 | E23: =F53*I23 -> 0 | F23: - | G23: =ConcWatNgpL -> 0 | H23: =G23*0.000000001 -> 0 | I23: =G23*0.000001/MolarMass -> 0
C25: Total | D25: =E25*MolarMass/1000 -> 100000 | E25: =SUM(E21:E23) -> 396328.4136
D27: Loss rate | F27: D Value | G27: Res. Time
D28: kg/h | E28: mol/h | F28: m³/h | G28: hours | H28: days
C29: Advection | D29: =H59 -> 5443.694944 | E29: =I59 -> 21574.90981 | F29: =SUM(G51:G57) -> 1.767471954e+10 | G29: =I45/I59 -> 428103.8744 | H29: =G29/24 -> 17837.66144
C30: Reaction | D30: =H73 -> 94556.30506 | E30: =I73 -> 374753.5038 | F30: =SUM(G65:G71) -> 3.070076832e+11 | G30: =I45/I73 -> 24646.34056 | H30: =G30/24 -> 1026.930857
C31: Overall | D31: =SUM(D29:D30) -> 100000 | E31: =SUM(E29:E30) -> 396328.4136 | F31: =SUM(F29:F30) -> 3.246824027e+11 | G31: =I45/E31 -> 23304.66897 | H31: =G31/24 -> 971.0278737
C33: Phase Properties
D35: Z Value | E35: VZ | F35: Concentration | I35: Quantity
D36: mol/m³*Pa | E36: mol/Pa | F36: mol/m³ | G36: g/m³ | H36: µg/kg dry | I36: mol | J36: kg | K36: %
C37: Air | D37: =IF(AND(ISNUMBER(SEARCH("N/A",Fugacity_Ratio)),KQW<1000),Z_Water*KAW,IF(ISNUMBER(SEARCH("N/A",Fugacity_Ratio)),(1/8.3144598/(DataTemp+273.15)),(1/8.3144598/(DataTemp+273.15)))) -> 0.0004033955922 | E37: =Z_Air*Vol_Air*(1-Frac_Aers) -> 4.033955922e+10 | F37: =Fugacity*Z_Air -> 4.924108413e-10 | G37: =Conc_Air*MolarMass -> 1.242431338e-07 | H37: - | I37: =Conc_Air*Vol_Air*(1-Frac_Aers) -> 49241.08413 | J37: =(MolarMass*I37)/1000 -> 12424.31338 | K37: =(100*I37)/I$45 -> 0.0005331255037
C38: Aerosol | D38: =IF(AND(ISNUMBER(SEARCH("N/A",Fugacity_Ratio)),KQW<1000),Z_Water*'Inputs - Chemical Properties'!$D$32,IF(ISNUMBER(SEARCH("N/A",Fugacity_Ratio)),(IF(Z_Air=0, 0, Z_Air*'Inputs - Chemical Properties'!D32)),((Z_Air*6000000)/D11))) -> 113554894.6 | E38: =Z_Aerosol*Frac_Aers*Vol_Air -> 2.271097893e+11 | F38: =Fugacity*Z_Aerosol -> 138.6124744 | G38: =Conc_Aers*MolarMass -> 34974.1451 | H38: =G38*1000000/Dens_Aers -> 17487072.55 | I38: =Conc_Aers*Frac_Aers*Vol_Air -> 277224.9489 | J38: 69948.2902 | K38: =(100*I38)/I$45 -> 0.003001471091
C39: Water | D39: =IF(AND(ISNUMBER(SEARCH("N/A",Fugacity_Ratio)),KQW<1000),1,IF(ISNUMBER(SEARCH("N/A",Fugacity_Ratio)),(Z_Air*KAW),(1/Henry_Const))) -> 21.59827214 | E39: =Z_Water*Vol_Wat*(1-Frac_Susp_Particles-Frac_Fish) -> 4.31962851e+12 | F39: =Fugacity*Z_Water -> 2.636425276e-05 | G39: =Conc_Water*MolarMass -> 0.006652122799 | H39: - | I39: =Conc_Water*Vol_Wat*(1-Frac_Susp_Particles-Frac_Fish) -> 5272818.915 | J39: 1330416.577 | K39: 0.05708798435
C40: Suspended Particles | D40: =IF(AND(ISNUMBER(SEARCH("N/A",Fugacity_Ratio)),KQW<1000),Z_Water*(KSus*Dens_Susp_Part/1000),IF(ISNUMBER(SEARCH("N/A",Fugacity_Ratio)),(Z_Air*KSus),((1/Henry_Const)*Dens_Susp_Part*OrgC_Susp*KOC/1000))) -> 2486613.62 | E40: =Z_Susp_Part*Vol_Wat*Frac_Susp_Particles -> 2.48661362e+12 | F40: =Fugacity*Z_Susp_Part -> 3.035321972 | G40: =Conc_Susp_Part*MolarMass -> 765.8602988 | H40: =G40*1000000/Dens_Susp_Part -> 510573.5325 | I40: =Conc_Susp_Part*Vol_Wat*Frac_Susp_Particles -> 3035321.972 | J40: 765860.2988 | K40: 0.03286295548
C41: Fish | D41: =IF(AND(ISNUMBER(SEARCH("N/A",Fugacity_Ratio)),KQW<1000),Z_Water*(KFish*Dens_Fish/1000),IF(ISNUMBER(SEARCH("N/A",Fugacity_Ratio)),(Z_Air*KFish),((1/Henry_Const)*OrgC_Fish*POWER(10,logKow)))) -> 1184101.724 | E41: =Z_Fish*Vol_Wat*Frac_Fish -> 2.368203447e+11 | F41: =Fugacity*Z_Fish -> 1.445391415 | G41: =Conc_Fish*MolarMass -> 364.6953804 | H41: =G41*1000000/Dens_Fish -> 364695.3804 | I41: =Conc_Fish*Frac_Fish*Vol_Wat -> 289078.2831 | J41: 72939.07608 | K41: 0.003129805284
C42: Soil | D42: =IF(AND(ISNUMBER(SEARCH("N/A",Fugacity_Ratio)),KQW<1000),Z_Water*(KQW*Dens_Soil/1000),IF(ISNUMBER(SEARCH("N/A",Fugacity_Ratio)),(Z_Air*KQW),(Z_Water*Dens_Soil*'Inputs - Environment'!G17*KOC/1000))) -> 397858.1792 | E42: =Z_Soil*Vol__Soil -> 7161447224917914 | F42: =Fugacity*Z_Soil -> 0.4856515156 | G42: =Conc_Soil*MolarMass -> 122.5376478 | H42: =G42*1000000/Dens_Soil -> 51057.35325 | I42: =Conc_Soil*Vol__Soil -> 8741727281 | J42: 2205677661 | K42: 94.64531178
C43: Sediment | D43: =IF(AND(ISNUMBER(SEARCH("N/A",Fugacity_Ratio)),KQW<1000),Z_Water*(K_Sed*Dens_Sed/1000),IF(ISNUMBER(SEARCH("N/A",Fugacity_Ratio)),(Z_Air*K_Sed),((1/Henry_Const)*Dens_Sed*OrgC_Sed*KOC/1000))) -> 795716.3583 | E43: =Z_Sed*Vol_Sed -> 3.978581792e+14 | F43: =Fugacity*Z_Sed -> 0.9713030312 | G43: =Conc_Sed*MolarMass -> 245.0752956 | H43: =IF(D43=0,0,G43*1000000/Dens_Sed) -> 102114.7065 | I43: =Conc_Sed*Vol_Sed -> 485651515.6 | J43: 122537647.8 | K43: 5.258072877
C45: Total | E45: =SUM(E37:E43) -> 7566615915902743 | I45: =SUM(I37:I43) -> 9236302481 | J45: =SUM(J37:J43) -> 2330466897 | K45: =SUM(K37:K43) -> 100
C47: Advection
D49: Res. Time | F49: Flow Rate | G49: D Value | H49: Rate | J49: % of Total
D50: hours | E50: days | F50: m³/h | G50: mol/Pa*h | H50: kg/h | I50: mol/h | J50: Losses
C51: Air | D51: =AdvFlowAirH -> 100 | E51: =AdvFlowAirH/24 -> 4.166666667 | F51: =Vol_Air*(1-Frac_Aers)/AdvFlowAirH -> 999999999980 | G51: =AdvFlowRate_Air*Z_Air -> 403395592.2 | H51: =I51*MolarMass/1000 -> 124.2431338 | I51: =AdvFlowRate_Air*Conc_Air -> 492.4108413 | J51: =100*I51/E$31 -> 0.1242431338
C52: Aerosol | D52: =AdvFlowAirH -> 100 | E52: =AdvFlowAirH/24 -> 4.166666667 | F52: =Frac_Aers*Vol_Air/AdvFlowAirH -> 20 | G52: =AdvFlowRate_Aers*Z_Aerosol -> 2271097893 | H52: =I52*MolarMass/1000 -> 699.482902 | I52: =AdvFlowRate_Aers*Conc_Aers -> 2772.249489 | J52: =100*I52/E$31 -> 0.699482902
C53: Water | D53: =AdvFlowWatH -> 1000 | E53: =AdvFlowWatH/24 -> 41.66666667 | F53: =Vol_Wat*(1-Frac_Susp_Particles-Frac_Fish)/AdvFlowWatH -> 199998800 | G53: =AdvFlowRate_Water*Z_Water -> 4319628510 | H53: =I53*MolarMass/1000 -> 1330.416577 | I53: =AdvFlowRate_Water*Conc_Water -> 5272.818915 | J53: 1.330416577
C54: Suspended Particles | D54: =AdvFlowWatH -> 1000 | E54: =AdvFlowWatH/24 -> 41.66666667 | F54: =Vol_Wat*Frac_Susp_Particles/AdvFlowWatH -> 1000 | G54: =AdvFlowRate_Susp_Part*Z_Susp_Part -> 2486613620 | H54: =I54*MolarMass/1000 -> 765.8602988 | I54: =AdvFlowRate_Susp_Part*Conc_Susp_Part -> 3035.321972 | J54: 0.7658602988
C55: Fish | D55: =AdvFlowWatH -> 1000 | E55: =AdvFlowWatH/24 -> 41.66666667 | F55: =Frac_Fish*Vol_Wat/AdvFlowWatH -> 200 | G55: =AdvFlowRate_Fish*Z_Fish -> 236820344.7 | H55: =I55*MolarMass/1000 -> 72.93907608 | I55: =AdvFlowRate_Fish*Conc_Fish -> 289.0782831 | J55: 0.07293907608
C56: Soil | D56: - | E56: - | F56: - | G56: - | H56: - | I56: - | J56: -
C57: Sediment | D57: =AdvFlowSedH -> 50000 | E57: =AdvFlowSedH/24 -> 2083.333333 | F57: =IF(D43=0,0,Vol_Sed/AdvFlowSedH) -> 10000 | G57: =IF(Z_Sed=0,0,AdvFlowRate_Sed*Z_Sed) -> 7957163583 | H57: =I57*MolarMass/1000 -> 2450.752956 | I57: =AdvFlowRate_Sed*Conc_Sed -> 9713.030312 | J57: 2.450752956
F59: Total | G59: =SUM(G51:G57) -> 1.767471954e+10 | H59: =SUM(H51:H57) -> 5443.694944 | I59: =SUM(I51:I57) -> 21574.90981 | J59: =SUM(J51:J57) -> 5.443694944
C61: Reaction
D63: Half-Life | F63: Rate Constant | G63: D Value | H63: Rate | J63: % of Total
D64: hours | E64: days | F64: 1/h | G64: mol/Pa*h | H64: kg/h | I64: mol/h | J64: Losses
C65: Air | D65: =HL_Air -> 170 | E65: =HL_Air/24 -> 7.083333333 | F65: =-LN(0.5)/HL_Air -> 0.004077336356 | G65: =VZ_Air*ReactRateConst_Air -> 164477951.4 | H65: =I65*MolarMass/1000 -> 50.65810466 | I65: =Vol_Air*(1-Frac_Aers)*Conc_Air*ReactRateConst_Air -> 200.7724625 | J65: =100*I65/E$31 -> 0.05065810466
C66: Aerosol | D66: =HL_Aers -> 170 | E66: =HL_Aers/24 -> 7.083333333 | F66: =-LN(0.5)/HL_Aers -> 0.004077336356 | G66: =VZ_Aers*ReactRateConst_Aers -> 926003000.7 | H66: =I66*MolarMass/1000 -> 285.2027067 | I66: =Frac_Aers*Vol_Air*Conc_Aers*ReactRateConst_Aers -> 1130.339363 | J66: =100*I66/E$31 -> 0.2852027067
C67: Water | D67: =HL_Water -> 1700 | E67: =HL_Water/24 -> 70.83333333 | F67: =-LN(0.5)/HL_Water -> 0.0004077336356 | G67: =VZ_Water*ReactRateConst_Water -> 1761257837 | H67: 542.455588 | I67: =Vol_Wat*(1-Frac_Susp_Particles-Frac_Fish)*Conc_Water*ReactRateConst_Water -> 2149.905626 | J67: =100*I67/E$31 -> 0.542455588
C68: Suspended Particles | D68: =HL_Susp_Part -> 1700 | E68: =HL_Susp_Part/24 -> 70.83333333 | F68: =0.693/HL_Susp_Part -> 0.0004076470588 | G68: =VZ_Susp_Part*ReactRateConst_Susp_Part -> 1013660729 | H68: 312.2006983 | I68: =Vol_Wat*Frac_Susp_Particles*Conc_Susp_Part*ReactRateConst_Susp_Part -> 1237.340075 | J68: 0.3122006983
C69: Fish | D69: =HL_Fish -> 26.77 | E69: =HL_Fish/24 -> 1.115416667 | F69: =-LN(0.5)/HL_Fish -> 0.02589268512 | G69: =VZ_Fish*ReactRateConst_Fish -> 6131914615 | H69: 1888.588529 | I69: =Frac_Fish*Vol_Wat*Conc_Fish*ReactRateConst_Fish -> 7485.012958 | J69: 1.888588529
C70: Soil | D70: =HL_Soil -> 17000 | E70: =HL_Soil/24 -> 708.3333333 | F70: =-LN(0.5)/HL_Soil -> 4.077336356e-05 | G70: =VZ_Soil*ReactRateConst_Soil -> 2.919962913e+11 | H70: 89932.89715 | I70: =Vol__Soil*Conc_Soil*ReactRateConst_Soil -> 356429.6246 | J70: 89.93289715
C71: Sediment | D71: =HL_Sed -> 55000 | E71: =HL_Sed/24 -> 2291.666667 | F71: =-LN(0.5)/HL_Sed -> 1.260267601e-05 | G71: =VZ_Sed*ReactRateConst_Sed -> 5014077730 | H71: 1544.302274 | I71: =Vol_Sed*Conc_Sed*ReactRateConst_Sed -> 6120.508705 | J71: 1.544302274
C73: Total | F73: Total | G73: =SUM(G65:G71) -> 3.070076832e+11 | H73: =SUM(H65:H71) -> 94556.30506 | I73: =SUM(I65:I71) -> 374753.5038 | J73: =SUM(J65:J71) -> 94.55630506

Sheet Diagram
D2: Chemical Name: | F2: =ChemName -> Benzo[a]pyrene
D4: Lake Name: | F4: =EnvName -> EQC-2012-Hughes et al.
J6: =Results!J37 -> 12424.31338 | K6: kg | L6: =Results!H51 -> 124.2431338 | M6: kg/h
J7: =Results!H37 -> - | K7: ng/m³ | L7: =Results!J51 -> 0.1242431338 | M7: %
A8: =IF(AND(ISNUMBER(SEARCH("N/A",Results!$D$9)),'Inputs - Chemical Properties'!$D$33<1000),"Aquivalence","Fugacity") -> Fugacity | B8: =IF(AND(ISNUMBER(SEARCH("Aquivalence",A8)),'Inputs - Chemical Properties'!$D$33<1000),Results!D15,Results!D13) -> 1.220664903e-06 | C8: Pa | G8: =Results!D22 -> 0 | H8: kg/h | J8: =Results!K37 -> 0.0005331255037 | K8: %
A9: Total Mass | B9: =Results!J45 -> 2330466897 | C9: kg
B10: =Results!D25 -> 100000 | C10: kg/h
M11: =Results!H65 -> 50.65810466 | N11: kg/h
M12: =Results!J65 -> 0.05065810466 | N12: %
B15: =Results!G31 -> 23304.66897 | C15: h
B16: =Results!G30 -> 24646.34056 | C16: h
B17: =Results!G29 -> 428103.8744 | C17: h
G20: =Results!J42 -> 2205677661 | H20: kg | O20: =Results!H53 -> 1330.416577 | P20: kg/h
G21: =Results!H42 -> 51057.35325 | H21: ng/g | O21: =Results!J53 -> 1.330416577 | P21: %
G22: =Results!K42 -> 94.64531178 | H22: % | L22: =Results!J39 -> 1330416.577 | M22: kg
B23: =Emis_kgph -> 100000 | C23: kg/h | L23: =Results!H39 -> - | M23: ng/L
L24: =Results!K39 -> 0.05708798435 | M24: %
E25: =Results!H70 -> 89932.89715 | F25: kg/h | P25: =Results!H67 -> 542.455588 | Q25: kg/h
E26: =Results!J70 -> 89.93289715 | F26: % | P26: =Results!J67 -> 0.542455588 | Q26: %
J29: =Results!D23 -> 0 | K29: kg/h
N36: =Results!H57 -> 2450.752956 | O36: kg/h
N37: =Results!J57 -> 2.450752956 | O37: %
K38: =Results!J43 -> 122537647.8 | L38: kg
K39: =Results!H43 -> 102114.7065 | L39: ng/g
K40: =Results!K43 -> 5.258072877 | L40: %
O41: =Results!H71 -> 1544.302274 | P41: kg/h
O42: =Results!J71 -> 1.544302274 | P42: %

Sheet Charts

Sheet Chemical Database
M7: Half-Lives | AA7: Partition Ratios
A8: CAS | B8: Chemical Name | C8: Molar Mass | D8: Data Temp. | E8: Melting Point | G8: Vapor pressure | I8: Solubility in Water | K8: Henry's Law Constant | M8: In Air | O8: In Aerosol | Q8: In Water | S8: In Susp. Particles | U8: In Fish | W8: In Soil | Y8: In Sediment | AA8: logKOW | AC8: KOC | AE8: Air-Water (KAW)/Water-Air | AG8: Aerosol-Water/Aerosol-Air | AI8: Soil-Water/Soil-Air | AK8: Suspended Particles-Water/Suspended Particles-Air | AM8: Sediment-Water/Sediment-Air | AO8: Fish-Water/Fish-Air | AQ8: NOTES
C9: (g/mol) | D9: °C | E9: °C | F9: Ref. | G9: (Pa) | H9: Ref. | I9: (g/m³ or mg/L) | J9: Ref. | K9: (Pa·m³/mol) | L9: Ref. | M9: (hours) | N9: Ref. | O9: (hours) | P9: Ref. | Q9: (hours) | R9: Ref. | S9: (hours) | T9: Ref. | U9: (hours) | V9: Ref. | W9: (hours) | X9: Ref. | Y9: (hours) | Z9: Ref. | AB9: Ref. | AC9: unitless | AD9: Ref. | AE9: unitless (m³/m³) | AF9: Ref. | AG9: unitless | AH9: Ref. | AI9: L/kg | AJ9: Ref. | AK9: L/kg | AL9: Ref. | AM9: L/kg | AN9: Ref. | AO9: L/kg | AP9: Ref.
B10: Specimen Type 1 | C10: 250 | D10: 25 | E10: 275 | G10: 0.02 | I10: 30 | K10: =IF(OR(B10="",G10="",B10="-",G10="-"),"",G10*C10/I10) -> 0.1666666667 | M10: 17 | O10: 17 | Q10: 55 | S10: 55 | U10: 55 | W10: 170 | Y10: 170 | AA10: 2.5 | AC10: =IF(OR(AA10="",AA10="-"),"",0.35*10^AA10) -> 110.6797181 | AD10: =IF(AC10=0.35*10^AA10,"Seth method","") -> Seth method | AQ10: Example values for type 1 chemicals such as benzene
B11: Specimen Type 2 | C11: 252.3 | D11: 25 | E11: - | G11: - | I11: - | K11: =IF(OR(B11="",G11="",B11="-",G11="-"),"",G11*C11/I11) ->  | M11: 17 | O11: 170 | Q11: 55 | S11: 170 | U11: 170 | W11: 170 | Y11: 170 | AC11: =IF(OR(AA11="",AA11="-"),"",0.35*10^AA11) ->  | AD11: =IF(AC11=0.35*10^AA11,"Seth method","") ->  | AE11: 6.72e-05 | AG11: 67.9 | AI11: 3.89 | AK11: 7.78 | AM11: 7.78 | AO11: 15.2 | AQ11: Example values for type 2 chemical such as alkylbenzene sulfonates
B12: Specimen Type 3 | C12: 131.4 | D12: 25 | E12: - | G12: - | I12: - | M12: 17 | O12: 17 | Q12: 55 | S12: 55 | U12: 55 | W12: 170 | Y12: 170 | AE12: 15000 | AG12: 1010000 | AI12: 58000 | AK12: 116000 | AM12: 116000 | AO12: 226000 | AQ12: Example values for type 3 chemicals such as mineral oil
B13: Benzene | C13: 78.11 | D13: 25 | E13: 5.53 | G13: 12700 | I13: 1780 | K13: 557.3016854 | M13: 315.58 | N13: EAS-E Suite Database | O13: 315.58 | P13: Assumption made that 1/2 life in air can be used | Q13: 331.1 | R13: EAS-E Suite Database | S13: 2979.92 | T13: Assumption made that 1/2 life in sediment can be used | U13: 9.2 | V13: EAS-E Suite Database | W13: 662.205 | X13: EAS-E Suite Database | Y13: 2979.92 | Z13: EAS-E Suite Database | AA13: 2.13 | AC13: 47.21370089 | AD13: Seth method
B14: Toluene | C14: 92.13 | D14: 25 | E14: -95 | G14: 3800 | I14: 515 | K14: 679.7941748 | M14: 64.93 | N14: EAS-E Suite Database | O14: 64.93 | P14: Assumption made that 1/2 life in air can be used | Q14: 238.865 | R14: EAS-E Suite Database | S14: 2149.75 | T14: Assumption made that 1/2 life in sediment can be used | U14: 15.42 | V14: EAS-E Suite Database | W14: 477.725 | X14: EAS-E Suite Database | Y14: 2149.75 | Z14: EAS-E Suite Database | AA14: 2.69 | AC14: 171.4225868 | AD14: Seth method
B15: Chlorobenzene | C15: 112.6 | D15: 25 | E15: -45.6 | G15: 1580 | I15: 484 | K15: 367.5785124 | M15: 500.11 | N15: EAS-E Suite Database | O15: 500.11 | P15: Assumption made that 1/2 life in air can be used | Q15: 602.2 | R15: EAS-E Suite Database | S15: 5419.8 | T15: Assumption made that 1/2 life in sediment can be used | U15: 2.3 | V15: EAS-E Suite Database | W15: 1204.4 | X15: EAS-E Suite Database | Y15: 5419.8 | Z15: EAS-E Suite Database | AA15: 2.8 | AC15: 220.8350706 | AD15: Seth method
B16: 1,4-Dichlorobenzene | C16: 147.01 | D16: 25 | E16: 53.1 | G16: 130 | I16: 83 | K16: 230.2566265 | M16: 620.3 | N16: EAS-E Suite Database | O16: 620.3 | P16: Assumption made that 1/2 life in air can be used | Q16: 1239 | R16: EAS-E Suite Database | S16: 12390 | T16: Assumption made that 1/2 life in sediment can be used | U16: 299.25 | V16: EAS-E Suite Database | W16: 2477.9 | X16: EAS-E Suite Database | Y16: 12390 | Z16: EAS-E Suite Database | AA16: 3.4 | AC16: 879.160251 | AD16: Seth method
B17: Hexachlorobenzene | C17: 284.8 | D17: 25 | E17: 230 | G17: 0.0023 | I17: 0.005 | K17: 131.008 | M17: 7351.7 | N17: EAS-E Suite Database | O17: 7351.7 | P17: Assumption made that 1/2 life in air can be used | Q17: 14017 | R17: EAS-E Suite Database | S17: 140170 | T17: Assumption made that 1/2 life in sediment can be used | U17: 6542.95 | V17: EAS-E Suite Database | W17: 28033 | X17: EAS-E Suite Database | Y17: 140170 | Z17: EAS-E Suite Database | AA17: 5.5 | AC17: 110679.7181 | AD17: Seth method
B18: N-hexane | C18: 86.17 | D18: 25 | E18: -95 | G18: 20200 | I18: 9.5 | K18: 183224.6316 | M18: 74.05 | N18: EAS-E Suite Database | O18: 74.05 | P18: Assumption made that 1/2 life in air can be used | Q18: 152.8 | R18: EAS-E Suite Database | S18: 1375.2 | T18: Assumption made that 1/2 life in sediment can be used | U18: 8.78 | V18: EAS-E Suite Database | W18: 305.595 | X18: EAS-E Suite Database | Y18: 1375.2 | Z18: EAS-E Suite Database | AA18: 4.11 | AC18: 4508.873431 | AD18: Seth method
B19: Tricholoroethylene | C19: 131.39 | D19: 25 | E19: -73 | G19: 9900 | I19: 1100 | K19: 1182.51 | M19: 191.85 | N19: EAS-E Suite Database | O19: 191.85 | P19: Assumption made that 1/2 life in air can be used | Q19: 1028.6 | R19: EAS-E Suite Database | S19: 9257.2 | T19: Assumption made that 1/2 life in sediment can be used | U19: 9.35 | V19: EAS-E Suite Database | W19: 2057.2 | X19: EAS-E Suite Database | Y19: 9257.2 | Z19: EAS-E Suite Database | AA19: 2.53 | AC19: 118.5954546 | AD19: Seth method
B20: 1-Pentanol | C20: 88.149 | D20: 25 | E20: -78.2 | G20: 300 | I20: 22000 | K20: 1.202031818 | M20: 34.69 | N20: EAS-E Suite Database | O20: 34.69 | P20: Assumption made that 1/2 life in air can be used | Q20: 126.5 | R20: EAS-E Suite Database | S20: 1138.5 | T20: Assumption made that 1/2 life in sediment can be used | U20: 0.41 | V20: EAS-E Suite Database | W20: 253 | X20: EAS-E Suite Database | Y20: 1138.5 | Z20: EAS-E Suite Database | AA20: 1.5 | AC20: 11.06797181 | AD20: Seth method
B21: Aniline | C21: 93.12 | D21: 25 | E21: -6.3 | G21: 65.19 | I21: 36070 | K21: 0.1682975548 | M21: 3.42 | N21: EAS-E Suite Database | O21: 3.42 | P21: Assumption made that 1/2 life in air can be used | Q21: 573.71 | R21: EAS-E Suite Database | S21: 5163.4 | T21: Assumption made that 1/2 life in sediment can be used | U21: 3.99 | V21: EAS-E Suite Database | W21: 1147.4 | X21: EAS-E Suite Database | Y21: 5163.4 | Z21: EAS-E Suite Database | AA21: 0.9 | AC21: 2.780148822 | AD21: Seth method
B22: Naphthalene | C22: 128.19 | D22: 25 | E22: 80.5 | G22: 10.4 | I22: 31 | K22: 43.00567742 | M22: 8.63 | N22: EAS-E Suite Database | O22: 8.63 | P22: Assumption made that 1/2 life in air can be used | Q22: 414.99 | R22: EAS-E Suite Database | S22: 1267.7 | T22: Assumption made that 1/2 life in sediment can be used | U22: 61.81 | V22: EAS-E Suite Database | W22: 829.99 | X22: EAS-E Suite Database | Y22: 1267.7 | Z22: EAS-E Suite Database | AA22: 3.37 | AC22: 820.4800854 | AD22: Seth method
B23: Phenanthrene | C23: 178.2 | D23: 25 | E23: 101 | G23: 0.02 | I23: 1.1 | K23: 3.24 | M23: 7.32 | N23: EAS-E Suite Database | O23: 7.32 | P23: Assumption made that 1/2 life in air can be used | Q23: 618.245 | R23: EAS-E Suite Database | S23: 3413.15 | T23: Assumption made that 1/2 life in sediment can be used | U23: 119.13 | V23: EAS-E Suite Database | W23: 1236.48 | X23: EAS-E Suite Database | Y23: 3413.15 | Z23: EAS-E Suite Database | AA23: 4.57 | AC23: 13003.73302 | AD23: Seth method
B24: Pyrene | C24: 202.3 | D24: 25 | E24: 156 | G24: 0.0006 | I24: 0.132 | K24: 0.9195454545 | M24: 3.97 | N24: EAS-E Suite Database | O24: 3.97 | P24: Assumption made that 1/2 life in air can be used | Q24: 4988.75 | R24: EAS-E Suite Database | S24: 64615 | T24: Assumption made that 1/2 life in sediment can be used | U24: 50.01 | V24: EAS-E Suite Database | W24: 9977.4 | X24: EAS-E Suite Database | Y24: 64615 | Z24: EAS-E Suite Database | AA24: 5.18 | AC24: 52974.6437 | AD24: Seth method
B25: PCB-15 | C25: 223.1 | D25: 25 | E25: 149 | G25: 0.0048 | I25: 0.06 | K25: 17.848 | M25: 192.54 | N25: EAS-E Suite Database | O25: 192.54 | P25: Assumption made that 1/2 life in air can be used | Q25: 1758.4 | R25: EAS-E Suite Database | S25: 15826 | T25: Assumption made that 1/2 life in sediment can be used | U25: 567.66 | V25: EAS-E Suite Database | W25: 3516.9 | X25: EAS-E Suite Database | Y25: 15826 | Z25: EAS-E Suite Database | AA25: 5.3 | AC25: 69834.18102 | AD25: Seth method
B26: PCB-52 | C26: 292 | D26: 25 | E26: 87 | G26: 0.0049 | I26: 0.03 | K26: 47.69333333 | M26: 527.4 | N26: EAS-E Suite Database | O26: 527.4 | P26: Assumption made that 1/2 life in air can be used | Q26: 5914.2 | R26: EAS-E Suite Database | S26: 53227 | T26: Assumption made that 1/2 life in sediment can be used | U26: 1853.53 | V26: EAS-E Suite Database | W26: 11828 | X26: EAS-E Suite Database | Y26: 53227 | Z26: EAS-E Suite Database | AA26: 6.1 | AC26: 440623.8941 | AD26: Seth method
B27: PCB-209 | C27: 498.7 | D27: 25 | E27: 305.9 | G27: 5.02e-08 | I27: 1e-05 | K27: 2.503474 | M27: 21193 | N27: EAS-E Suite Database | O27: 21193 | P27: Assumption made that 1/2 life in air can be used | Q27: 81709 | R27: EAS-E Suite Database | S27: 735380 | T27: Assumption made that 1/2 life in sediment can be used | U27: 17534.52 | V27: EAS-E Suite Database | W27: 163420 | X27: EAS-E Suite Database | Y27: 735380 | Z27: EAS-E Suite Database | AA27: 8.26 | AC27: 63689530.05 | AD27: Seth method
B28: Dibenzo-p-dioxin | C28: 184 | D28: 25 | E28: 123 | G28: 0.055 | I28: 0.865 | K28: 11.69942197 | M28: 32.09 | N28: EAS-E Suite Database | O28: 32.09 | P28: Assumption made that 1/2 life in air can be used | Q28: 390.33 | R28: EAS-E Suite Database | S28: 3513 | T28: Assumption made that 1/2 life in sediment can be used | U28: 32.32 | V28: EAS-E Suite Database | W28: 780.67 | X28: EAS-E Suite Database | Y28: 3513 | Z28: EAS-E Suite Database | AA28: 4.3 | AC28: 6983.418102 | AD28: Seth method
B29: 4-chlorophenol | C29: 128.56 | D29: 25 | E29: 43 | G29: 20 | I29: 27000 | K29: 0.09522962963 | M29: 39.01 | N29: EAS-E Suite Database | O29: 39.01 | P29: Assumption made that 1/2 life in air can be used | Q29: 597.61 | R29: EAS-E Suite Database | S29: 5378.5 | T29: Assumption made that 1/2 life in sediment can be used | U29: 9.25 | V29: EAS-E Suite Database | W29: 1195.2 | X29: EAS-E Suite Database | Y29: 5378.5 | Z29: EAS-E Suite Database | AA29: 2.4 | AC29: 87.9160251 | AD29: Seth method
B30: Pentachlorophenol | C30: 266.34 | D30: 25 | E30: 190 | G30: 0.00415 | I30: 14 | K30: 0.07895078571 | M30: 597.91 | N30: EAS-E Suite Database | O30: 597.91 | P30: Assumption made that 1/2 life in air can be used | Q30: 6759.9 | R30: EAS-E Suite Database | S30: 67599 | T30: Assumption made that 1/2 life in sediment can be used | U30: 15 | V30: EAS-E Suite Database | W30: 13520 | X30: EAS-E Suite Database | Y30: 67599 | Z30: EAS-E Suite Database | AA30: 5.05 | AC30: 39270.6459 | AD30: Seth method
B31: DEHP | C31: 390.54 | D31: 25 | E31: -50 | G31: 1.33e-05 | I31: 0.285 | K31: 0.0182252 | M31: 9.41 | N31: EAS-E Suite Database | O31: 9.41 | P31: Assumption made that 1/2 life in air can be used | Q31: 115.11 | R31: EAS-E Suite Database | S31: 1151.1 | T31: Assumption made that 1/2 life in sediment can be used | U31: 66.23 | V31: EAS-E Suite Database | W31: 230.21 | X31: EAS-E Suite Database | Y31: 1151.1 | Z31: EAS-E Suite Database | AA31: 5.11 | AC31: 45088.73431 | AD31: Seth method
B32: p,p'-DDT | C32: 354.5 | D32: 25 | E32: 108.5 | G32: 2e-05 | I32: 0.0055 | K32: 1.289090909 | M32: 112.1 | N32: EAS-E Suite Database | O32: 112.1 | P32: Assumption made that 1/2 life in air can be used | Q32: 14472 | R32: EAS-E Suite Database | S32: 130250 | T32: Assumption made that 1/2 life in sediment can be used | U32: 2030.97 | V32: EAS-E Suite Database | W32: 28945 | X32: EAS-E Suite Database | Y32: 130250 | Z32: EAS-E Suite Database | AA32: 6.19 | AC32: 542085.8166 | AD32: Seth method
B33: Lindane | C33: 290.85 | D33: 25 | E33: 112 | G33: 0.00374 | I33: 7.3 | K33: 0.1490108219 | M33: 1044.7 | N33: EAS-E Suite Database | O33: 1044.7 | P33: Assumption made that 1/2 life in air can be used | Q33: 4392.9 | R33: EAS-E Suite Database | S33: 43929 | T33: Assumption made that 1/2 life in sediment can be used | U33: 948.5 | V33: EAS-E Suite Database | W33: 8785.8 | X33: EAS-E Suite Database | Y33: 43929 | Z33: EAS-E Suite Database | AA33: 3.7 | AC33: 1754.155318 | AD33: Seth method
B34: Atrazine | C34: 215.68 | D34: 25 | E34: 174 | G34: 4e-05 | I34: 30 | K34: 0.0002875733333 | M34: 9.33 | N34: EAS-E Suite Database | O34: 9.33 | P34: Assumption made that 1/2 life in air can be used | Q34: 2505.2 | R34: EAS-E Suite Database | S34: 25052 | T34: Assumption made that 1/2 life in sediment can be used | U34: 2.14 | V34: EAS-E Suite Database | W34: 5010.4 | X34: EAS-E Suite Database | Y34: 25052 | Z34: EAS-E Suite Database | AA34: 2.75 | AC34: 196.8194638 | AD34: Seth method
B35: Hypothene | C35: 200 | D35: 27.5 | E35: 0 | G35: 1 | I35: 20 | K35: 10 | M35: 100000000000 | O35: 100000000000 | Q35: 693 | S35: 100000000000 | U35: 100000000000 | W35: 69.3 | Y35: 6930 | AA35: 4 | AC35: 3500 | AD35: Seth method | AQ35: Hypothetical chemical
B36: Benzo[a]pyrene | C36: 252.316 | D36: 25 | E36: 175 | G36: 7e-07 | K36: 0.0463 | M36: 170 | N36: EAS-E Suite Database | O36: 170 | P36: Assumption made that 1/2 life in air can be used | Q36: 1700 | R36: EAS-E Suite Database | S36: 1700 | T36: Assumption made that 1/2 life in sediment can be used | U36: 26.77 | V36: EAS-E Suite Database | W36: 17000 | X36: EAS-E Suite Database | Y36: 55000 | Z36: EAS-E Suite Database | AA36: 6.04 | AC36: 383767.3687 | AD36: Seth method
K70: =IF(OR(B70="",G70="",B70="-",G70="-"),"",G70*C70/I70) -> 
AC73: =IF(OR(AA73="",AA73="-"),"",0.35*10^AA73) ->  | AD73: =IF(AC73=0.35*10^AA73,"Seth method","") -> 
K134: =IF(OR(B134="",G134="",B134="-",G134="-"),"",G134*C134/I134) -> 
AC137: =IF(OR(AA137="",AA137="-"),"",0.35*10^AA137) ->  | AD137: =IF(AC137=0.35*10^AA137,"Seth method","") -> 
K198: =IF(OR(B198="",G198="",B198="-",G198="-"),"",G198*C198/I198) -> 
AC201: =IF(OR(AA201="",AA201="-"),"",0.35*10^AA201) ->  | AD201: =IF(AC201=0.35*10^AA201,"Seth method","") -> 
K262: =IF(OR(B262="",G262="",B262="-",G262="-"),"",G262*C262/I262) -> 
AC265: =IF(OR(AA265="",AA265="-"),"",0.35*10^AA265) ->  | AD265: =IF(AC265=0.35*10^AA265,"Seth method","") -> 
K326: =IF(OR(B326="",G326="",B326="-",G326="-"),"",G326*C326/I326) -> 
AC329: =IF(OR(AA329="",AA329="-"),"",0.35*10^AA329) ->  | AD329: =IF(AC329=0.35*10^AA329,"Seth method","") -> 
K390: =IF(OR(B390="",G390="",B390="-",G390="-"),"",G390*C390/I390) -> 
AC393: =IF(OR(AA393="",AA393="-"),"",0.35*10^AA393) ->  | AD393: =IF(AC393=0.35*10^AA393,"Seth method","") -> 
K454: =IF(OR(B454="",G454="",B454="-",G454="-"),"",G454*C454/I454) -> 
AC457: =IF(OR(AA457="",AA457="-"),"",0.35*10^AA457) ->  | AD457: =IF(AC457=0.35*10^AA457,"Seth method","") -> 
K518: =IF(OR(B518="",G518="",B518="-",G518="-"),"",G518*C518/I518) -> 
AC521: =IF(OR(AA521="",AA521="-"),"",0.35*10^AA521) ->  | AD521: =IF(AC521=0.35*10^AA521,"Seth method","") -> 
K582: =IF(OR(B582="",G582="",B582="-",G582="-"),"",G582*C582/I582) -> 
AC585: =IF(OR(AA585="",AA585="-"),"",0.35*10^AA585) ->  | AD585: =IF(AC585=0.35*10^AA585,"Seth method","") -> 
K646: =IF(OR(B646="",G646="",B646="-",G646="-"),"",G646*C646/I646) -> 
AC649: =IF(OR(AA649="",AA649="-"),"",0.35*10^AA649) ->  | AD649: =IF(AC649=0.35*10^AA649,"Seth method","") -> 
K710: =IF(OR(B710="",G710="",B710="-",G710="-"),"",G710*C710/I710) -> 
AC713: =IF(OR(AA713="",AA713="-"),"",0.35*10^AA713) ->  | AD713: =IF(AC713=0.35*10^AA713,"Seth method","") -> 
K774: =IF(OR(B774="",G774="",B774="-",G774="-"),"",G774*C774/I774) -> 
AC777: =IF(OR(AA777="",AA777="-"),"",0.35*10^AA777) ->  | AD777: =IF(AC777=0.35*10^AA777,"Seth method","") -> 
K838: =IF(OR(B838="",G838="",B838="-",G838="-"),"",G838*C838/I838) -> 
AC841: =IF(OR(AA841="",AA841="-"),"",0.35*10^AA841) ->  | AD841: =IF(AC841=0.35*10^AA841,"Seth method","") -> 
K902: =IF(OR(B902="",G902="",B902="-",G902="-"),"",G902*C902/I902) -> 
AC905: =IF(OR(AA905="",AA905="-"),"",0.35*10^AA905) ->  | AD905: =IF(AC905=0.35*10^AA905,"Seth method","") -> 
K966: =IF(OR(B966="",G966="",B966="-",G966="-"),"",G966*C966/I966) -> 
AC969: =IF(OR(AA969="",AA969="-"),"",0.35*10^AA969) ->  | AD969: =IF(AC969=0.35*10^AA969,"Seth method","") -> 
K1030: =IF(OR(B1030="",G1030="",B1030="-",G1030="-"),"",G1030*C1030/I1030) -> 
AC1033: =IF(OR(AA1033="",AA1033="-"),"",0.35*10^AA1033) ->  | AD1033: =IF(AC1033=0.35*10^AA1033,"Seth method","") -> 
K1094: =IF(OR(B1094="",G1094="",B1094="-",G1094="-"),"",G1094*C1094/I1094) -> 
AC1097: =IF(OR(AA1097="",AA1097="-"),"",0.35*10^AA1097) ->  | AD1097: =IF(AC1097=0.35*10^AA1097,"Seth method","") -> 
K1158: =IF(OR(B1158="",G1158="",B1158="-",G1158="-"),"",G1158*C1158/I1158) -> 
AC1161: =IF(OR(AA1161="",AA1161="-"),"",0.35*10^AA1161) ->  | AD1161: =IF(AC1161=0.35*10^AA1161,"Seth method","") -> 
K1222: =IF(OR(B1222="",G1222="",B1222="-",G1222="-"),"",G1222*C1222/I1222) -> 
AC1225: =IF(OR(AA1225="",AA1225="-"),"",0.35*10^AA1225) ->  | AD1225: =IF(AC1225=0.35*10^AA1225,"Seth method","") -> 
K1286: =IF(OR(B1286="",G1286="",B1286="-",G1286="-"),"",G1286*C1286/I1286) -> 
AC1289: =IF(OR(AA1289="",AA1289="-"),"",0.35*10^AA1289) ->  | AD1289: =IF(AC1289=0.35*10^AA1289,"Seth method","") -> 
K1350: =IF(OR(B1350="",G1350="",B1350="-",G1350="-"),"",G1350*C1350/I1350) -> 
AC1353: =IF(OR(AA1353="",AA1353="-"),"",0.35*10^AA1353) ->  | AD1353: =IF(AC1353=0.35*10^AA1353,"Seth method","") -> 
K1414: =IF(OR(B1414="",G1414="",B1414="-",G1414="-"),"",G1414*C1414/I1414) -> 
AC1417: =IF(OR(AA1417="",AA1417="-"),"",0.35*10^AA1417) ->  | AD1417: =IF(AC1417=0.35*10^AA1417,"Seth method","") -> 
K1478: =IF(OR(B1478="",G1478="",B1478="-",G1478="-"),"",G1478*C1478/I1478) -> 
AC1481: =IF(OR(AA1481="",AA1481="-"),"",0.35*10^AA1481) ->  | AD1481: =IF(AC1481=0.35*10^AA1481,"Seth method","") -> 
K1542: =IF(OR(B1542="",G1542="",B1542="-",G1542="-"),"",G1542*C1542/I1542) -> 
AC1545: =IF(OR(AA1545="",AA1545="-"),"",0.35*10^AA1545) ->  | AD1545: =IF(AC1545=0.35*10^AA1545,"Seth method","") -> 
K1606: =IF(OR(B1606="",G1606="",B1606="-",G1606="-"),"",G1606*C1606/I1606) -> 
AC1609: =IF(OR(AA1609="",AA1609="-"),"",0.35*10^AA1609) ->  | AD1609: =IF(AC1609=0.35*10^AA1609,"Seth method","") -> 
K1670: =IF(OR(B1670="",G1670="",B1670="-",G1670="-"),"",G1670*C1670/I1670) -> 
AC1673: =IF(OR(AA1673="",AA1673="-"),"",0.35*10^AA1673) ->  | AD1673: =IF(AC1673=0.35*10^AA1673,"Seth method","") -> 
K1734: =IF(OR(B1734="",G1734="",B1734="-",G1734="-"),"",G1734*C1734/I1734) -> 
AC1737: =IF(OR(AA1737="",AA1737="-"),"",0.35*10^AA1737) ->  | AD1737: =IF(AC1737=0.35*10^AA1737,"Seth method","") -> 
K1798: =IF(OR(B1798="",G1798="",B1798="-",G1798="-"),"",G1798*C1798/I1798) -> 
AC1801: =IF(OR(AA1801="",AA1801="-"),"",0.35*10^AA1801) ->  | AD1801: =IF(AC1801=0.35*10^AA1801,"Seth method","") -> 
K1862: =IF(OR(B1862="",G1862="",B1862="-",G1862="-"),"",G1862*C1862/I1862) -> 
AC1865: =IF(OR(AA1865="",AA1865="-"),"",0.35*10^AA1865) ->  | AD1865: =IF(AC1865=0.35*10^AA1865,"Seth method","") -> 
K1926: =IF(OR(B1926="",G1926="",B1926="-",G1926="-"),"",G1926*C1926/I1926) -> 
AC1929: =IF(OR(AA1929="",AA1929="-"),"",0.35*10^AA1929) ->  | AD1929: =IF(AC1929=0.35*10^AA1929,"Seth method","") -> 
K1990: =IF(OR(B1990="",G1990="",B1990="-",G1990="-"),"",G1990*C1990/I1990) -> 
AC1993: =IF(OR(AA1993="",AA1993="-"),"",0.35*10^AA1993) ->  | AD1993: =IF(AC1993=0.35*10^AA1993,"Seth method","") -> 
K2054: =IF(OR(B2054="",G2054="",B2054="-",G2054="-"),"",G2054*C2054/I2054) -> 
AC2057: =IF(OR(AA2057="",AA2057="-"),"",0.35*10^AA2057) ->  | AD2057: =IF(AC2057=0.35*10^AA2057,"Seth method","") -> 
K2118: =IF(OR(B2118="",G2118="",B2118="-",G2118="-"),"",G2118*C2118/I2118) -> 
AC2121: =IF(OR(AA2121="",AA2121="-"),"",0.35*10^AA2121) ->  | AD2121: =IF(AC2121=0.35*10^AA2121,"Seth method","") -> 
K2182: =IF(OR(B2182="",G2182="",B2182="-",G2182="-"),"",G2182*C2182/I2182) -> 
AC2185: =IF(OR(AA2185="",AA2185="-"),"",0.35*10^AA2185) ->  | AD2185: =IF(AC2185=0.35*10^AA2185,"Seth method","") -> 
K2246: =IF(OR(B2246="",G2246="",B2246="-",G2246="-"),"",G2246*C2246/I2246) -> 
AC2249: =IF(OR(AA2249="",AA2249="-"),"",0.35*10^AA2249) ->  | AD2249: =IF(AC2249=0.35*10^AA2249,"Seth method","") -> 
K2310: =IF(OR(B2310="",G2310="",B2310="-",G2310="-"),"",G2310*C2310/I2310) -> 
AC2313: =IF(OR(AA2313="",AA2313="-"),"",0.35*10^AA2313) ->  | AD2313: =IF(AC2313=0.35*10^AA2313,"Seth method","") -> 
K2374: =IF(OR(B2374="",G2374="",B2374="-",G2374="-"),"",G2374*C2374/I2374) -> 
AC2377: =IF(OR(AA2377="",AA2377="-"),"",0.35*10^AA2377) ->  | AD2377: =IF(AC2377=0.35*10^AA2377,"Seth method","") -> 
K2438: =IF(OR(B2438="",G2438="",B2438="-",G2438="-"),"",G2438*C2438/I2438) -> 
AC2441: =IF(OR(AA2441="",AA2441="-"),"",0.35*10^AA2441) ->  | AD2441: =IF(AC2441=0.35*10^AA2441,"Seth method","") -> 
K2502: =IF(OR(B2502="",G2502="",B2502="-",G2502="-"),"",G2502*C2502/I2502) -> 
AC2505: =IF(OR(AA2505="",AA2505="-"),"",0.35*10^AA2505) ->  | AD2505: =IF(AC2505=0.35*10^AA2505,"Seth method","") -> 
K2566: =IF(OR(B2566="",G2566="",B2566="-",G2566="-"),"",G2566*C2566/I2566) -> 
AC2569: =IF(OR(AA2569="",AA2569="-"),"",0.35*10^AA2569) ->  | AD2569: =IF(AC2569=0.35*10^AA2569,"Seth method","") -> 
K2630: =IF(OR(B2630="",G2630="",B2630="-",G2630="-"),"",G2630*C2630/I2630) -> 
AC2633: =IF(OR(AA2633="",AA2633="-"),"",0.35*10^AA2633) ->  | AD2633: =IF(AC2633=0.35*10^AA2633,"Seth method","") -> 
K2694: =IF(OR(B2694="",G2694="",B2694="-",G2694="-"),"",G2694*C2694/I2694) -> 
AC2697: =IF(OR(AA2697="",AA2697="-"),"",0.35*10^AA2697) ->  | AD2697: =IF(AC2697=0.35*10^AA2697,"Seth method","") -> 
K2758: =IF(OR(B2758="",G2758="",B2758="-",G2758="-"),"",G2758*C2758/I2758) -> 
AC2761: =IF(OR(AA2761="",AA2761="-"),"",0.35*10^AA2761) ->  | AD2761: =IF(AC2761=0.35*10^AA2761,"Seth method","") -> 
K2822: =IF(OR(B2822="",G2822="",B2822="-",G2822="-"),"",G2822*C2822/I2822) -> 
AC2825: =IF(OR(AA2825="",AA2825="-"),"",0.35*10^AA2825) ->  | AD2825: =IF(AC2825=0.35*10^AA2825,"Seth method","") -> 
K2886: =IF(OR(B2886="",G2886="",B2886="-",G2886="-"),"",G2886*C2886/I2886) -> 
AC2889: =IF(OR(AA2889="",AA2889="-"),"",0.35*10^AA2889) ->  | AD2889: =IF(AC2889=0.35*10^AA2889,"Seth method","") -> 
K2950: =IF(OR(B2950="",G2950="",B2950="-",G2950="-"),"",G2950*C2950/I2950) -> 
AC2953: =IF(OR(AA2953="",AA2953="-"),"",0.35*10^AA2953) ->  | AD2953: =IF(AC2953=0.35*10^AA2953,"Seth method","") -> 
K3014: =IF(OR(B3014="",G3014="",B3014="-",G3014="-"),"",G3014*C3014/I3014) -> 
AC3017: =IF(OR(AA3017="",AA3017="-"),"",0.35*10^AA3017) ->  | AD3017: =IF(AC3017=0.35*10^AA3017,"Seth method","") -> 
K3078: =IF(OR(B3078="",G3078="",B3078="-",G3078="-"),"",G3078*C3078/I3078) -> 
K3079: =IF(OR(B3079="",G3079="",B3079="-",G3079="-"),"",G3079*C3079/I3079) -> 
K3080: =IF(OR(B3080="",G3080="",B3080="-",G3080="-"),"",G3080*C3080/I3080) -> 

Sheet Environment Database
B7: Fractions | E7: Volumes | I7: Advective Flow Residence Times | L7: Density | S7: Organic Carbon (g/g)
A8: Name | B8: Aerosol in Air | C8: Susp. Particles in Water | D8: Fish in Water | E8: Air | F8: Water | G8: Soil | H8: Sediment | I8: Air | J8: Water | K8: Sediment (burial) | L8: Air | M8: Aerosol | N8: Water | O8: Susp. Particles | P8: Fish | Q8: Soil | R8: Sediment | S8: Susp. Particles | T8: Fish Lipid | U8: Soil | V8: Sediment | W8: NOTES
E9: (m³) | F9: (m³) | G9: (m³) | H9: (m³) | I9: (h) | J9: (h) | K9: (h) | L9: (kg/m³) | M9: (kg/m³) | N9: (kg/m³) | O9: (kg/m³) | P9: (kg/m³) | Q9: (kg/m³) | R9: (kg/m³) | S9: (g/g) | T9: (g/g) | U9: (g/g) | V9: (g/g)
A10: Shield Lake | B10: =0.0000000001 -> 1e-10 | C10: =5*0.00001 -> 5e-05 | D10: =0.0000001 -> 1e-07 | E10: 100000000000000 | F10: 100000000000 | G10: 18000000000 | H10: 100000000 | I10: 100 | J10: 20000 | K10: 25000 | L10: 1.185 | M10: 1500 | N10: 1000 | O10: 2000 | P10: 1000 | Q10: 2400 | R10: 2300 | S10: 0.3 | T10: 0.05 | U10: 0.02 | V10: 0.05
A11: EQC Standard Region | E11: 100000000000000 | F11: 200000000000 | G11: 9000000000 | H11: 100000000 | I11: 100 | J11: 1000 | K11: 50000 | L11: 1.185 | M11: 2000 | N11: 1000 | O11: 1500 | P11: 1000 | Q11: 1500 | R11: 1280 | S11: 0.2 | T11: 0.05 | U11: 0.02 | V11: 0.04
A12: CEMC200105 | E12: 100000000000000 | F12: 1e+20 | G12: 9000000000 | H12: 100000000 | I12: 100 | J12: 1000 | K12: 50000 | L12: 1.185 | M12: 2000 | N12: 1000 | O12: 1500 | P12: 1000 | Q12: 1500 | R12: 1280 | S12: 0.2 | T12: 0.05 | U12: 0.0170731 | V12: 0.0341463
A13: Default | E13: 100000000000000 | F13: 200000000000 | G13: 9000000000 | H13: 100000000 | I13: 100 | J13: 1000 | K13: 50000 | L13: 1.185 | M13: 2000 | N13: 1000 | O13: 1500 | P13: 1000 | Q13: 2400 | R13: 2400 | S13: 0.2 | T13: 0.05 | U13: 0.02 | V13: 0.04
A14: Hypothene | B14: 0 | C14: 0 | D14: 0 | E14: 6000000000 | F14: 7000000 | G14: 45000 | H14: 21000 | I14: 600 | J14: 7000 | K14: 100000000000 | L14: 1.175556 | M14: 2000 | N14: 1000 | O14: 1500 | P14: 1000 | Q14: 1500 | R14: 1500 | S14: 0.2 | T14: 0.05 | U14: 0.02 | V14: 0.04
A15: EQC-2012-Hughes et al. | B15: 2e-11 | C15: 5e-06 | D15: 1e-06 | E15: 100000000000000 | F15: 200000000000 | G15: 18000000000 | H15: 500000000 | I15: 100 | J15: 1000 | K15: 50000 | L15: 1.2 | M15: 2000 | N15: 1000 | O15: 1500 | P15: 1000 | Q15: 2400 | R15: 2400 | S15: 0.2 | T15: 0.05 | U15: 0.02 | V15: 0.04
